fUSD/lending_fUSD_20241125
["ID","MTS","AMOUNT","RATE_DAILY","PERIOD"]
[343234256,1732513849196,-5960.28,0.0004437,30]
[343234257,1732513849205,-500.0,0.0004437,30]
[343234258,1732513849216,-549.39,0.0004437,30]
[343234259,1732513849227,-3607.47,0.0004437,30]
[343234260,1732513849237,-500.0,0.0004437,30]
[343234261,1732513849247,-500.0,0.0004437,30]
[343234262,1732513849256,-4992.38,0.0004437,30]
[343234263,1732513849266,-500.0,0.0004437,30]
[343234264,1732513849275,-500.0,0.0004437,30]
[343234265,1732513849285,-500.0,0.0004437,30]
[343234266,1732513849294,-500.0,0.0004437,30]
[343234267,1732513849304,-25781.66,0.0004437,30]
[343234268,1732513849313,-500.0,0.0004437,30]
[343234269,1732513849322,-500.0,0.0004437,30]
[343234270,1732513849332,-500.0,0.0004437,30]
[343234271,1732513849341,-5589.27,0.0004437,30]
[343234272,1732513849351,-3113.80006153,0.0004437,30]
[343234273,1732513849383,-1193.71993847,0.0004437,30]
[343234274,1732513849393,-2295.66,0.0004437,30]
[343234275,1732513849403,-500.0,0.0004437,30]
[343234276,1732513849412,-6868.79,0.0004437,30]
[343234277,1732513849422,-4316.28,0.0004437,30]
[343234278,1732513849431,-1091.79,0.0004437,30]
[343234279,1732513849441,-7408.66,0.0004437,30]
[343234280,1732513849451,-446.98768666,0.0004437,30]
[343234281,1732513849460,-514.744922,0.0004437,30]
[343234282,1732513849470,-500.0,0.0004437,30]
[343234283,1732513849481,-151.0,0.0004437,14]
[343234284,1732513849491,-500.0,0.0004437,30]
[343234285,1732513849504,-17008.85,0.0004437,30]
[343234286,1732513849514,-500.0,0.0004437,30]
[343234287,1732513849525,-4900.41,0.0004437,30]
[343234288,1732513849534,-500.0,0.0004437,30]
[343234289,1732513849545,-439.06625668,0.0004437,30]
[343234290,1732513849555,-500.0,0.0004437,30]
[343234291,1732513849564,-500.0,0.00044371,30]
[343234292,1732513849574,-500.0,0.00044371,30]
[343234293,1732513849584,-500.0,0.00044371,30]
[343234294,1732513849594,-500.0,0.00044371,30]
[343234295,1732513849603,-500.0,0.00044371,30]
[343234296,1732513849613,-520.81342162,0.00044371,30]
[343234297,1732513849623,-500.0,0.00044371,30]
[343234298,1732513849633,-500.0,0.00044371,30]
[343234299,1732513849643,-500.0,0.00044371,30]
[343234300,1732513849652,-619.31244378,0.00044371,30]
[343234301,1732513849662,-500.0,0.00044371,30]
[343234302,1732513849672,-568.5343196,0.00044371,30]
[343234303,1732513849681,-500.0,0.00044371,30]
[343234304,1732513849691,-296.0465967,0.00044371,30]
[343234305,1732513849700,-522.74625352,0.00044371,30]
[343234306,1732513849710,-500.0,0.00044371,30]
[343234307,1732513849720,-500.0,0.00044371,30]
[343234308,1732513849731,-500.0,0.00044371,30]
[343234309,1732513849741,-187.15987842,0.00044371,30]
[343234310,1732513849750,-599.52505831,0.00044371,30]
[343234311,1732513849760,-500.0,0.00044371,30]
[343234312,1732513849769,-429.82153724,0.00044371,30]
[343234313,1732513849779,-500.0,0.00044371,30]
[343234314,1732513849789,-500.0,0.00044371,30]
[343234315,1732513849798,-500.0,0.00044371,30]
[343234316,1732513849807,-500.0,0.00044371,30]
[343234317,1732513849816,-500.0,0.00044371,30]
[343234318,1732513849826,-500.0,0.00044371,30]
[343234319,1732513849835,-500.0,0.00044371,30]
[343234320,1732513849845,-607.25,0.00044371,30]
[343234321,1732513849854,-500.0,0.00044371,30]
[343234322,1732513849864,-500.0,0.00044371,30]
[343234323,1732513849873,-646.17745811,0.00044371,30]
[343234324,1732513849883,-512.78617791,0.00044371,30]
[343234325,1732513849892,-265.30467287,0.00044371,30]
[343234326,1732513849901,-500.0,0.00044371,30]
[343234327,1732513849911,-500.0,0.00044371,30]
[343234328,1732513849920,-500.0,0.00044371,30]
[343234329,1732513849929,-500.0,0.00044371,30]
[343234330,1732513849939,-563.90314581,0.00044371,30]
[343234331,1732513849948,-500.0,0.00044371,30]
[343234332,1732513849957,-514.9580273,0.00044371,30]
[343234333,1732513849967,-515.64640155,0.00044371,30]
[343234334,1732513849977,-500.0,0.00044371,30]
[343234335,1732513849987,-533.86751177,0.00044371,30]
[343234336,1732513849996,-204.78539466,0.00044371,30]
[343234337,1732513850006,-500.0,0.00044371,30]
[343234338,1732513850015,-500.0,0.00044371,30]
[343234339,1732513850024,-500.0,0.00044371,30]
[343234340,1732513850033,-481.49111859,0.00044371,30]
[343234341,1732513850042,-282.07685631,0.00044371,30]
[343234342,1732513850051,-500.0,0.00044371,30]
[343234343,1732513850060,-514.59622437,0.00044371,30]
[343234344,1732513850069,-500.0,0.00044371,30]
[343234345,1732513850079,-500.0,0.00044371,30]
[343234346,1732513850088,-500.0,0.00044371,30]
[343234347,1732513850098,-500.0,0.00044371,30]
[343234348,1732513850107,-500.0,0.00044371,30]
[343234349,1732513850116,-500.0,0.00044371,30]
[343234350,1732513850126,-500.0,0.00044371,30]
[343234351,1732513850135,-500.0,0.00044371,30]
[343234352,1732513850145,-500.0,0.00044371,30]
[343234353,1732513850154,-500.0,0.00044371,7]
[343234354,1732513850163,-500.0,0.00044371,30]
[343234355,1732513850173,-500.0,0.00044371,30]
[343234356,1732513850182,-500.0,0.00044371,30]
[343234357,1732513850198,-176.77464756,0.00044371,30]
[343234358,1732513850221,-1527.01,0.00044371,30]
[343234359,1732513850232,-500.0,0.00044371,30]
[343234360,1732513850241,-500.0,0.00044371,30]
[343234361,1732513850251,-216.89677601,0.00044371,30]
[343234362,1732513850260,-500.0,0.00044371,30]
[343234363,1732513850270,-500.0,0.00044371,30]
[343234364,1732513850279,-500.0,0.00044371,30]
[343234365,1732513850289,-500.0,0.00044371,30]
[343234366,1732513850298,-512.2335067,0.00044371,30]
[343234367,1732513850309,-500.0,0.00044371,30]
[343234368,1732513850322,-228.77618521,0.00044371,30]
[343234369,1732513850332,-500.0,0.00044371,30]
[343234370,1732513850341,-500.0,0.00044371,30]
[343234371,1732513850350,-467.36320776,0.00044371,30]
[343234372,1732513850360,-500.0,0.00044371,30]
[343234373,1732513850370,-500.0,0.00044371,30]
[343234374,1732513850379,-500.0,0.00044371,30]
[343234375,1732513850388,-500.0,0.00044371,30]
[343234376,1732513850398,-500.0,0.00044371,30]
[343234377,1732513850407,-500.0,0.00044371,30]
[343234378,1732513850415,-508.03582309,0.00044371,30]
[343234379,1732513850426,-500.0,0.00044371,30]
[343234380,1732513850435,-500.0,0.00044371,30]
[343234381,1732513850445,-500.0,0.00044371,30]
[343234382,1732513850455,-500.0,0.00044371,30]
[343234383,1732513850465,-500.0,0.00044371,30]
[343234384,1732513850476,-288.90208816,0.00044371,30]
[343234385,1732513850485,-500.0,0.00044371,30]
[343234386,1732513850496,-500.0,0.00044371,30]
[343234387,1732513850508,-500.0,0.00044371,30]
[343234388,1732513850517,-605.38355885,0.00044371,30]
[343234389,1732513850527,-500.0,0.00044371,30]
[343234390,1732513850536,-500.0,0.00044371,30]
[343234391,1732513850546,-500.0,0.00044371,30]
[343234392,1732513850555,-500.0,0.00044371,30]
[343234393,1732513850566,-330.20032113,0.00044371,7]
[343234394,1732513850575,-479.80477117,0.00044371,30]
[343234395,1732513850586,-500.0,0.00044371,30]
[343234396,1732513850597,-500.0,0.00044371,30]
[343234397,1732513850607,-500.0,0.00044371,30]
[343234398,1732513850617,-430.06700042,0.00044371,30]
[343234399,1732513850627,-500.0,0.00044371,30]
[343234400,1732513850637,-521.4,0.00044371,30]
[343234401,1732513850647,-500.0,0.00044371,30]
[343234402,1732513850657,-168.0,0.00044371,30]
[343234403,1732513850667,-500.0,0.00044371,30]
[343234404,1732513850677,-500.0,0.00044371,30]
[343234405,1732513850690,-535.93239231,0.00044371,30]
[343234406,1732513850700,-500.0,0.00044371,30]
[343234407,1732513850710,-500.0,0.00044371,30]
[343234408,1732513850719,-500.0,0.00044371,30]
[343234409,1732513850732,-463.87162783,0.00044371,30]
[343234410,1732513850745,-604.31757333,0.00044371,30]
[343234411,1732513850754,-500.0,0.00044371,30]
[343234412,1732513850765,-530.35225214,0.00044371,30]
[343234413,1732513850774,-657.79,0.00044371,30]
[343234414,1732513850784,-529.16793369,0.00044371,30]
[343234415,1732513850794,-799.55,0.00044371,30]
[343234416,1732513850803,-500.0,0.00044371,30]
[343234417,1732513850813,-528.85308513,0.00044371,30]
[343234418,1732513850823,-500.0,0.00044371,30]
[343234419,1732513850833,-500.0,0.00044371,30]
[343234420,1732513850843,-500.0,0.00044371,30]
[343234421,1732513850852,-500.0,0.00044371,30]
[343234422,1732513850861,-500.0,0.00044371,30]
[343234423,1732513850871,-500.0,0.00044371,30]
[343234424,1732513850881,-500.0,0.00044371,30]
[343234425,1732513850891,-500.0,0.00044371,30]
[343234426,1732513850900,-523.14842483,0.00044371,30]
[343234427,1732513850910,-500.0,0.00044371,30]
[343234428,1732513850921,-500.0,0.00044371,30]
[343234429,1732513850930,-500.0,0.00044371,30]
[343234430,1732513850939,-500.0,0.00044371,30]
[343234431,1732513850949,-500.0,0.00044371,30]
[343234432,1732513850958,-523.55277734,0.00044371,30]
[343234433,1732513850967,-500.0,0.00044371,30]
[343234434,1732513850978,-500.0,0.00044371,30]
[343234435,1732513850987,-528.46595921,0.00044371,30]
[343234436,1732513850997,-543.42973174,0.00044371,30]
[343234437,1732513851007,-500.0,0.00044371,30]
[343234438,1732513851017,-838.38,0.00044371,30]
[343234439,1732513851026,-500.0,0.00044371,30]
[343234440,1732513851035,-500.0,0.00044371,30]
[343234441,1732513851045,-604.02873105,0.00044371,30]
[343234442,1732513851054,-500.0,0.00044371,30]
[343234443,1732513851063,-500.0,0.00044371,30]
[343234444,1732513851072,-500.0,0.00044371,30]
[343234445,1732513851082,-500.0,0.00044371,30]
[343234446,1732513851091,-196.75527537,0.00044371,30]
[343234447,1732513851102,-500.0,0.00044371,30]
[343234448,1732513851111,-500.0,0.00044371,30]
[343234449,1732513851127,-268.27569631,0.00044371,30]
[343234450,1732513851150,-500.0,0.00044371,30]
[343234451,1732513851160,-500.0,0.00044371,7]
[343234452,1732513851170,-500.0,0.00044371,30]
[343234453,1732513851179,-575.1424575,0.00044371,30]
[343234454,1732513851188,-500.0,0.00044371,30]
[343234455,1732513851197,-500.0,0.00044371,30]
[343234456,1732513851207,-500.0,0.00044371,30]
[343234457,1732513851217,-500.0,0.00044371,30]
[343234458,1732513851228,-500.0,0.00044371,30]
[343234459,1732513851237,-493.97643568,0.00044371,30]
[343234460,1732513851246,-500.0,0.00044371,30]
[343234461,1732513851255,-292.31090146,0.00044371,30]
[343234462,1732513851264,-500.0,0.00044371,30]
[343234463,1732513851274,-404.86674397,0.00044371,30]
[343234464,1732513851284,-1000.0,0.00044371,30]
[343234465,1732513851294,-500.0,0.00044371,30]
[343234466,1732513851303,-500.0,0.00044371,30]
[343234467,1732513851313,-500.0,0.00044371,30]
[343234468,1732513851322,-500.0,0.00044371,30]
[343234469,1732513851332,-500.0,0.00044371,30]
[343234470,1732513851341,-500.0,0.00044371,30]
[343234471,1732513851351,-500.0,0.00044371,30]
[343234472,1732513851360,-500.0,0.00044371,30]
[343234473,1732513851370,-500.0,0.00044371,30]
[343234474,1732513851379,-6193.3,0.00044371,30]
[343234475,1732513851389,-500.0,0.00044371,30]
[343234476,1732513851399,-500.0,0.00044371,30]
[343234477,1732513851408,-5018.48,0.00044371,30]
[343234478,1732513851417,-692.61,0.00044371,30]
[343234479,1732513851427,-2322.34,0.00044371,30]
[343234480,1732513851436,-549.09,0.00044371,30]
[343234481,1732513851446,-5390.75,0.00044371,30]
[343234482,1732513851456,-1749.78899506,0.00044371,30]
[343234483,1732513882565,241407.56,0.0004,2]
[343234484,1732513882593,13508556.09672425,0.0004,2]
[343234485,1732513882620,2000000.0,0.0004,2]
[343234486,1732514099884,300.0,0.000401,30]
[343234487,1732514123806,256.0,0.00035,2]
[343234488,1732514147655,300.0,0.000401,30]
[343234489,1732514175306,338.0,0.000401,30]
[343234491,1732514280859,-176.04525,0.00038767,2]
[343234492,1732514280882,-2262.0,0.000396,2]
[343234493,1732514280907,-2561.95475,0.000399,15]
[343234494,1732514312641,271.184,0.000392,54]
[343234496,1732514577645,250.0,0.000287,2]
[343234497,1732514578306,225.0,0.000287,2]
[343234500,1732514912273,156.18,0.00030685,2]
[343234516,1732515031629,-2893.359955,0.000397,2]
[343234517,1732515031640,-571.90609618,0.000399,5]
[343234518,1732515031652,-7.06299739,0.000399,5]
[343234519,1732515031664,-972.32577181,0.000399,2]
[343234520,1732515031793,-7867.04414177,0.000399,2]
[343234521,1732515031803,-1481.62756168,0.000399,2]
[343234522,1732515031812,-36161.29302609,0.000399,15]
[343234523,1732515031823,-6011.45554858,0.000399,15]
[343234524,1732515031834,-228.60892302,0.000399,2]
[343234525,1732515031843,-1604.51979787,0.000399,15]
[343234526,1732515031852,-231.96476766,0.000399,2]
[343234527,1732515031863,-515.9668379,0.000399,2]
[343234528,1732515031876,-385.86345803,0.00039973,5]
[343234529,1732515031886,-160.86011511,0.00039973,5]
[343234530,1732515031895,-500.0,0.00039973,2]
[343234531,1732515031905,-20526.87102078,0.0003999,2]
[343234532,1732515035457,-13400.0,0.0003999,2]
[343234533,1732515035471,-2879.656345,0.0003999,2]
[343234543,1732515037796,-401.97793665,0.0003999,2]
[343234544,1732515038068,-35535.35894396,0.0003999,2]
[343234589,1732515039791,-3236.37956398,0.0003999,2]
[343234613,1732515042723,-3634.59788886,0.0003999,2]
[343234619,1732515043128,-3925.54740803,0.0003999,2]
[343234620,1732515043140,-480.76730889,0.0003999,2]
[343234630,1732515045635,-509.93002312,0.0003999,2]
[343234631,1732515045713,-1459.5,0.0003999,2]
[343234632,1732515046065,-144.36086246,0.0003999,2]
[343234634,1732515099304,6669.8030064,0.000401,120]
[343234636,1732515284682,2130.34299465,0.0004,30]
[343234637,1732515321368,325.52530264,0.00039999,31]
[343234638,1732515364733,797.0,0.00039973,120]
[343234640,1732515432376,299.99,0.000396,120]
[343234641,1732515440178,1017.9068707,0.00039232,30]
[343234642,1732515495556,151.0,0.0003,120]
[343234643,1732515554067,250.0,0.00031,2]
[343234644,1732515554963,511.59,0.00035,2]
[343234645,1732515555103,300.0,0.00033,2]
[343234646,1732515556152,350.0,0.00035,2]
[343234647,1732515562436,500.0,0.00035,2]
[343234648,1732515571106,500.0,0.00035,2]
[343234649,1732515587582,154.7,0.00030685,2]
[343234653,1732515738904,-400.0,0.00037,2]
[343234654,1732515738930,-532.131,0.0003723,120]
[343234655,1732515738953,-233.27845151,0.00038236,110]
[343234656,1732515738975,-225.18524091,0.00038381,2]
[343234657,1732515738997,-164.258,0.00038436,2]
[343234658,1732515739019,-197.724,0.00038436,2]
[343234659,1732515739041,-225.1852409,0.0003846,2]
[343234660,1732515739064,-250.0,0.00038469,120]
[343234661,1732515739091,-1000.0,0.00038469,2]
[343234662,1732515739112,-10900.68,0.00038469,2]
[343234663,1732515739134,-250.0,0.00038481,2]
[343234664,1732515739156,-200.0,0.0003855,2]
[343234665,1732515739182,-1852.42,0.00038553,2]
[343234666,1732515739206,-658.16,0.0003856,120]
[343234667,1732515739227,-442.06,0.00038564,2]
[343234668,1732515739249,-2751.0,0.0003861,120]
[343234669,1732515739272,-171.29,0.0003868,120]
[343234670,1732515739294,-166.3,0.00038687,2]
[343234671,1732515739316,-200.0,0.00038688,60]
[343234672,1732515739338,-2410.58,0.00038885,2]
[343234673,1732515739362,-200.0,0.00039,2]
[343234674,1732515739385,-450.0,0.00039,2]
[343234675,1732515739411,-150.24,0.00039125,2]
[343234676,1732515739434,-171.9,0.0003914,2]
[343234677,1732515739456,-150.24,0.00039143,2]
[343234678,1732515739479,-150.24,0.00039161,2]
[343234679,1732515739501,-150.24,0.00039178,2]
[343234680,1732515739525,-150.24,0.00039196,2]
[343234681,1732515739548,-3468.97,0.000392,2]
[343234682,1732515739570,-1892.46,0.000392,90]
[343234683,1732515739595,-200.0,0.000392,14]
[343234684,1732515739618,-400.0,0.000392,14]
[343234685,1732515739640,-1100.0,0.000392,14]
[343234686,1732515739661,-800.0,0.000392,14]
[343234687,1732515739684,-200.0,0.000392,14]
[343234688,1732515739708,-150.24,0.00039214,2]
[343234689,1732515739729,-150.24,0.00039232,2]
[343234690,1732515739751,-1371.9831293,0.00039232,30]
[343234691,1732515739773,-1300.0,0.00039232,4]
[343234692,1732515739795,-668.0,0.00039232,4]
[343234693,1732515739818,-150.24,0.0003925,2]
[343234694,1732515739841,-150.24,0.00039267,2]
[343234695,1732515739862,-150.24,0.00039285,2]
[343234696,1732515739896,-500.0,0.000393,14]
[343234697,1732515739935,-900.0,0.000393,14]
[343234698,1732515739956,-2200.0,0.000393,14]
[343234699,1732515739979,-1700.0,0.000393,14]
[343234700,1732515740000,-500.0,0.000393,14]
[343234701,1732515740022,-150.24,0.00039303,2]
[343234702,1732515740044,-150.24,0.00039321,2]
[343234703,1732515740066,-700.0,0.000394,14]
[343234704,1732515740093,-1300.0,0.000394,14]
[343234705,1732515740115,-3300.0,0.000394,14]
[343234706,1732515740137,-2500.0,0.000394,14]
[343234707,1732515740159,-700.0,0.000394,14]
[343234708,1732515740181,-1000.0,0.000395,14]
[343234709,1732515740204,-1800.0,0.000395,14]
[343234710,1732515740226,-4400.0,0.000395,14]
[343234711,1732515740248,-3400.0,0.000395,14]
[343234712,1732515740270,-1000.0,0.000395,14]
[343234713,1732515740293,-1300.0,0.000396,14]
[343234714,1732515740315,-2200.0,0.000396,14]
[343234715,1732515740337,-173.39,0.000396,2]
[343234716,1732515740361,-150.99,0.000396,2]
[343234717,1732515740386,-11947.0,0.000396,2]
[343234718,1732515740407,-5500.0,0.000396,14]
[343234719,1732515740428,-4300.0,0.000396,14]
[343234720,1732515740450,-1200.0,0.000396,14]
[343234721,1732515740471,-3616.2311708,0.0003961,2]
[343234722,1732515740506,-3775.79072006,0.0003961,2]
[343234723,1732515740526,-250.0,0.0003966,2]
[343234724,1732515740549,-200.0,0.000397,14]
[343234725,1732515740570,-400.0,0.000397,14]
[343234726,1732515740594,-1100.0,0.000397,14]
[343234727,1732515740616,-800.0,0.000397,14]
[343234728,1732515740637,-200.0,0.000397,14]
[343234729,1732515740659,-429.94,0.00039745,2]
[343234730,1732515740681,-200.0,0.000398,14]
[343234731,1732515740703,-400.0,0.000398,14]
[343234732,1732515740725,-1100.0,0.000398,14]
[343234733,1732515740747,-4200.67211373,0.000398,2]
[343234734,1732515740770,-800.0,0.000398,14]
[343234735,1732515740792,-200.0,0.000398,14]
[343234736,1732515740814,-4200.6721137,0.00039811,2]
[343234737,1732515740836,-4200.6721137,0.00039822,2]
[343234738,1732515740859,-358.54,0.00039823,10]
[343234739,1732515740880,-4200.6721137,0.00039833,2]
[343234740,1732515740903,-176.7,0.0003984,91]
[343234741,1732515740924,-4200.6721137,0.00039844,2]
[343234742,1732515740945,-165.57,0.00039848,2]
[343234743,1732515740967,-4200.6721137,0.00039856,2]
[343234744,1732515740990,-4200.6721137,0.00039867,2]
[343234745,1732515741012,-495.33498914,0.0003987,2]
[343234746,1732515741041,-325.40152759,0.0003987,2]
[343234747,1732515741063,-185.92,0.00039871,2]
[343234748,1732515741085,-159.61393275,0.00039873,2]
[343234749,1732515741109,-495.33498914,0.00039874,2]
[343234750,1732515741133,-4200.6721137,0.00039878,2]
[343234751,1732515741156,-495.33498914,0.00039879,2]
[343234752,1732515741180,-495.33498914,0.00039883,2]
[343234753,1732515741201,-495.33498914,0.00039887,2]
[343234754,1732515741223,-4200.6721137,0.00039889,2]
[343234755,1732515741244,-343.06,0.0003989,3]
[343234756,1732515741266,-285.88,0.0003989,3]
[343234757,1732515741286,-238.23,0.0003989,3]
[343234758,1732515741309,-198.53,0.0003989,3]
[343234759,1732515741330,-595.61,0.0003989,3]
[343234760,1732515741356,-255.24,0.0003989,3]
[343234761,1732515741377,-765.72,0.0003989,3]
[343234762,1732515741399,-495.33498914,0.00039891,2]
[343234763,1732515741420,-495.33498914,0.00039896,2]
[343234764,1732515741442,-200.0,0.000399,14]
[343234765,1732515741463,-400.0,0.000399,14]
[343234766,1732515741484,-70303.14690562,0.000399,15]
[343234767,1732515741506,-1100.0,0.000399,14]
[343234768,1732515741526,-4200.6721137,0.000399,15]
[343234769,1732515741546,-250000.0,0.000399,2]
[343234770,1732515741567,-391.97424118,0.000399,15]
[343234771,1732515741587,-2772.65786395,0.000399,2]
[343234772,1732515741616,-152.40594868,0.000399,2]
[343234773,1732515741637,-173.54411216,0.000399,2]
[343234774,1732515741659,-495.33498914,0.000399,2]
[343234775,1732515741680,-192.2824855,0.000399,2]
[343234776,1732515741701,-2151.49467413,0.000399,2]
[343234777,1732515741723,-800.0,0.000399,14]
[343234778,1732515741745,-270.62556225,0.000399,2]
[343234779,1732515741768,-200.0,0.000399,14]
[343234780,1732515741789,-150.5,0.0003997,7]
[343234781,1732515741810,-502.9580133,0.00039973,5]
[343234782,1732515741831,-500.0,0.00039973,5]
[343234783,1732515741852,-500.0,0.00039973,5]
[343234784,1732515741873,-500.0,0.00039973,2]
[343234785,1732515741895,-150.5,0.0003998,7]
[343234786,1732515741918,-159102.26736007,0.0003999,2]
[343234787,1732515741938,-150.5,0.0003999,7]
[343234788,1732515741960,-4577.2401842,0.00039992,2]
[343234789,1732515741981,-3318.6095181,0.00039992,2]
[343234790,1732515742001,-7966.917654,0.00039992,2]
[343234791,1732515742023,-400.68481966,0.00039999,2]
[343234792,1732515742044,-240.4108918,0.00039999,2]
[343234793,1732515742065,-160.27392786,0.00039999,2]
[343234794,1732515742091,-1007.92880059,0.00039999,2]
[343234795,1732515742112,-319.41910818,0.00039999,30]
[343234796,1732515742134,-1936.02947094,0.00039999,5]
[343234797,1732515742154,-1250.26975119,0.00039999,30]
[343234798,1732515742176,-317.91925745,0.00039999,31]
[343234799,1732515742198,-500.0,0.00039999,31]
[343234800,1732515742219,-500.0,0.00039999,31]
[343234801,1732515742241,-500.0,0.00039999,31]
[343234802,1732515742263,-500.0,0.00039999,31]
[343234803,1732515742285,-500.0,0.00039999,31]
[343234804,1732515742306,-500.0,0.00039999,31]
[343234805,1732515742328,-381.02699267,0.00039999,31]
[343234806,1732515742350,-1331035.20899255,0.0004,2]
[343234807,1732515770566,-2339.416326,0.00036815,2]
[343234808,1732515770588,-500.0,0.00039,120]
[343234809,1732515770610,-500.0,0.00039,120]
[343234810,1732515770637,-542.00345824,0.00039,120]
[343234811,1732515770658,-500.0,0.00039,120]
[343234812,1732515770689,-500.0,0.00039,120]
[343234813,1732515770711,-500.0,0.00039,120]
[343234814,1732515770732,-500.0,0.00039,120]
[343234815,1732515770752,-664.89526189,0.00039,120]
[343234816,1732515770773,-500.0,0.00039,120]
[343234817,1732515770793,-869.92326813,0.00039,120]
[343234818,1732515770813,-769.08465434,0.00039,120]
[343234819,1732515770835,-1300.0,0.00039,120]
[343234820,1732515770856,-1300.0,0.00039,120]
[343234821,1732515770879,-1300.0,0.00039,120]
[343234822,1732515770903,-1300.0,0.00039,120]
[343234823,1732515770924,-1300.0,0.00039,120]
[343234824,1732515770944,-1300.0,0.00039,120]
[343234825,1732515770966,-1300.0,0.00039,120]
[343234826,1732515770986,-1300.0,0.00039,120]
[343234827,1732515771007,-1439.54709512,0.00039,120]
[343234828,1732515771028,-203.30200423,0.00039873,5]
[343234829,1732515771049,-500.0,0.00039873,5]
[343234830,1732515771070,-500.0,0.00039873,2]
[343234831,1732515771094,-1253.50626101,0.000399,2]
[343234832,1732515771123,-151.25,0.0003999,3]
[343234833,1732515771144,-453.79,0.0003999,3]
[343234834,1732515771166,-203.0,0.0003999,30]
[343234835,1732515771187,-2057.6782284,0.00039992,2]
[343234836,1732515771210,-1413.76,0.00039999,7]
[343234837,1732515771233,-972738.84344264,0.0004,2]
[343234838,1732515802190,-496.53481288,0.000389,2]
[343234839,1732515802213,-21729.8995226,0.000399,2]
[343234840,1732515802234,-1848.43857598,0.000399,2]
[343234841,1732515802256,-152.40594866,0.000399,2]
[343234842,1732515802277,-3106.2167458,0.00039992,2]
[343234843,1732515802298,-200.0,0.00039999,60]
[343234844,1732515802320,-472466.50439408,0.0004,2]
[343234856,1732515848406,-280.760941,0.0004,14]
[343234857,1732515848427,-151.0,0.0004,14]
[343234858,1732515848447,-280.760941,0.0004,14]
[343234859,1732515848469,-191.45684,0.0004,14]
[343234860,1732515848491,-191.45684,0.0004,14]
[343234861,1732515848513,-151.0,0.0004,14]
[343234862,1732515848537,-151.0,0.0004,14]
[343234863,1732515848560,-151.0,0.0004,14]
[343234864,1732515848584,-151.0,0.0004,14]
[343234865,1732515848609,-151.0,0.0004,14]
[343234866,1732515848637,-151.0,0.0004,14]
[343234867,1732515848659,-167.174061,0.0004,14]
[343234868,1732515848681,-151.0,0.0004,14]
[343234869,1732515848720,-151.0,0.0004,14]
[343234870,1732515848750,-151.0,0.0004,14]
[343234871,1732515848772,-151.0,0.0004,14]
[343234872,1732515848794,-151.0,0.0004,14]
[343234873,1732515848815,-151.0,0.0004,14]
[343234874,1732515848836,-161.592256,0.0004,14]
[343234875,1732515848858,-157.869002,0.0004,14]
[343234876,1732515848880,-151.0,0.0004,14]
[343234877,1732515848903,-157.869002,0.0004,14]
[343234878,1732515848925,-151.0,0.0004,14]
[343234879,1732515848947,-151.0,0.0004,14]
[343234880,1732515848969,-151.0,0.0004,14]
[343234881,1732515848991,-207.212113,0.0004,14]